[Event "DVM U12w 2023"]
[Site "Magdeburg"]
[Date "2023.12.28"]
[Round "4"]
[White "Hladeniuk, Yelyzaveta"]
[Black "Burchardi, Helena"]
[Result "1-0"]
[WhiteElo "1362"]
[BlackElo "1370"]
[PlyCount "139"]
[EventDate "2022.12.27"]
[EventType "team-tourn"]
[EventRounds "7"]
[EventCountry "GER"]
[TimeControl "40/5400+30:1800+30"]
[WhiteClock "0:27:49"]
[BlackClock "0:46:09"]

1. d4 {[%emt 0:00:09]} d5 {[%emt 0:00:10]} 2. c4 {[%emt 0:00:16]} e6 {[%emt 0:00:11]} 3. Nc3 {[%emt 0:00:18]} Nf6 {[%emt 0:00:11]} 4. cxd5 {[%emt 0:00:18]} exd5 {[%emt 0:00:13]} 5. Bg5 {[%emt 0:00:42]} Be7 {[%emt 0:00:12]} 6. e3 {[%emt 0:00:13]} O-O {[%emt 0:00:10]} 7. Nf3 {[%emt 0:01:20]} Bg4 {[%emt 0:00:57]} 8. Be2 {[%emt 0:00:26]} Nbd7 {[%emt 0:00:10]} 9. O-O {[%emt 0:01:24]} c6 {[%emt 0:00:14]} 10. a3 {[%emt 0:00:56]} Re8 {[%emt 0:00:51]} 11. b4 {[%emt 0:00:21]} a6 {[%emt 0:01:12]} 12. Qb3 {[%emt 0:02:30]} Ne4 {[%emt 0:01:48]} 13. Bxe7 {[%emt 0:02:49]} Qxe7 {[%emt 0:00:59]} 14. Qb2 {[%emt 0:04:55]} b5 {[%emt 0:02:12]} 15. h3 {[%emt 0:01:20]} Be6 {[%emt 0:02:04]} 16. Bd3 {[%emt 0:02:20]} Ndf6 {[%emt 0:01:57]} 17. Ne5 {[%emt 0:01:36]} Qc7 {[%emt 0:04:00]} 18. Rac1 {[%emt 0:01:24]} Rab8 {[%emt 0:01:24]} 19. Nxe4 {[%emt 0:02:20]} dxe4 {[%emt 0:01:41]} 20. Rxc6 {[%emt 0:01:06]} Qb7 {[%emt 0:01:28]} 21. Be2 {[%emt 0:01:00]} Nd5 {[%emt 0:02:03]} 22. Rfc1 {[%emt 0:10:45]} f6 {[%emt 0:03:04]} 23. Ng4 {[%emt 0:00:25]} Re7 {[%emt 0:01:10]} 24. Nh2 {[%emt 0:02:05]} Nb6 {[%emt 0:00:51]} 25. R6c2 {[%emt 0:03:06]} Nc4 {[%emt 0:01:01]} 26. Bxc4 {[%emt 0:00:34]} Bxc4 {[%emt 0:00:17]} 27. Nf1 {[%emt 0:01:16]} Ree8 {[%emt 0:03:31]} 28. Nd2 {[%emt 0:00:44]} Bf7 {[%emt 0:06:35]} 29. Rc7 {[%emt 0:05:20]} Qd5 {[%emt 0:00:38]} 30. Ra7 {[%emt 0:00:57]} Ra8 {[%emt 0:00:53]} 31. Rac7 {[%emt 0:00:48]} Qg5 {[%emt 0:00:53]} 32. Qc2 {[%emt 0:01:51]} Be6 {[%emt 0:01:17]} 33. Nxe4 {[%emt 0:05:33]} Qg6 {[%emt 0:03:49]} 34. Nd6 {[%emt 0:01:35]} Qxc2 {[%emt 0:00:07]} 35. R1xc2 {[%emt 0:00:42]} Red8 {[%emt 0:00:44]} 36. R2c6 {[%emt 0:03:24]} Bd7 {[%emt 0:01:40]} 37. Rb6 {[%emt 0:02:09]} Be6 {[%emt 0:03:56]} 38. Ne4 {[%emt 0:01:41]} Bd5 {[%emt 0:00:47]} 39. Nc3 {[%emt 0:03:12]} h6 {[%emt 0:04:45]} 40. Nxd5 {[%emt 0:01:01]} Rxd5 {[%emt 0:00:15]} 41. Rbb7 {[%emt 0:30:34]} Rg5 {[%emt 0:30:50]} 42. Ra7 {[%emt 0:04:11]} Rd8 {[%emt 0:01:32]} 43. Rxa6 {[%emt 0:00:46]} Re8 {[%emt 0:00:34]} 44. Rc5 {[%emt 0:00:41]} Rb8 {[%emt 0:00:27]} 45. Ra5 {[%emt 0:01:15]} Kf8 {[%emt 0:00:50]} 46. h4 {[%emt 0:01:04]} Rxc5 {[%emt 0:00:45]} 47. dxc5 {[%emt 0:00:18]} Ke8 {[%emt 0:00:16]} 48. Ra7 {[%emt 0:00:08]} Kd8 {[%emt 0:00:33]} 49. Kf1 {[%emt 0:00:42]} g6 {[%emt 0:00:35]} 50. Ke2 {[%emt 0:00:16]} Kc8 {[%emt 0:00:35]} 51. Kd3 {[%emt 0:00:22]} Rb7 {[%emt 0:00:39]} 52. Rxb7 {[%emt 0:00:09]} Kxb7 {[%emt 0:00:08]} 53. Kd4 {[%emt 0:00:10]} Kc6 {[%emt 0:00:28]} 54. g4 {[%emt 0:00:14]} Kc7 {[%emt 0:01:24]} 55. Kd5 {[%emt 0:00:10]} Kd7 {[%emt 0:00:09]} 56. f4 {[%emt 0:02:31]} Kc7 {[%emt 0:03:09]} 57. g5 {[%emt 0:01:51]} hxg5 {[%emt 0:00:48]} 58. fxg5 {[%emt 0:00:51]} fxg5 {[%emt 0:00:11]} 59. hxg5 {[%emt 0:00:29]} Kd7 {[%emt 0:00:11]} 60. e4 {[%emt 0:00:13]} Kc7 {[%emt 0:00:46]} 61. e5 {[%emt 0:01:54]} Kd7 {[%emt 0:00:31]} 62. c6+ {[%emt 0:00:09]} Kd8 {[%emt 0:00:11]} 63. Kd6 {[%emt 0:00:08]} Kc8 {[%emt 0:00:32]} 64. c7 {[%emt 0:00:17]} Kb7 {[%emt 0:00:10]} 65. Kd7 {[%emt 0:00:12]} Kb6 {[%emt 0:00:25]} 66. c8=Q {[%emt 0:00:40]} Ka7 {[%emt 0:00:19]} 67. Qc5+ {[%emt 0:00:19]} Ka6 {[%emt 0:00:25]} 68. Qd6+ {[%emt 0:00:26]} Kb7 {[%emt 0:00:33]} 69. Qf8 {[%emt 0:00:33]} Kb6 {[%emt 0:00:35]} 70. e6 {[%emt 0:01:17] normal} 1-0

[Event "DVM U12w 2023"]
[Site "Magdeburg"]
[Date "2023.12.28"]
[Round "4"]
[White "Noennig, Lotte"]
[Black "Xu, Dorothea Sicheng"]
[Result "1-0"]
[WhiteElo "1345"]
[BlackElo "1118"]
[PlyCount "97"]
[EventDate "2022.12.27"]
[EventType "team-tourn"]
[EventRounds "7"]
[EventCountry "GER"]
[TimeControl "40/5400+30:1800+30"]
[WhiteClock "0:48:43"]
[BlackClock "0:44:18"]

1. e4 {[%emt 0:00:01]} e5 {[%emt 0:00:06]} 2. Nf3 {[%emt 0:00:12]} Nc6 {[%emt 0:00:04]} 3. Bc4 {[%emt 0:00:08]} Nf6 {[%emt 0:00:07]} 4. d3 {[%emt 0:00:10]} h6 {[%emt 0:00:14]} 5. c3 {[%emt 0:00:12]} Bc5 {[%emt 0:00:37]} 6. Nbd2 {[%emt 0:00:07]} O-O {[%emt 0:00:49]} 7. h3 {[%emt 0:00:22]} d5 {[%emt 0:01:24]} 8. exd5 {[%emt 0:00:30]} Nxd5 {[%emt 0:00:11]} 9. O-O {[%emt 0:02:15]} Re8 {[%emt 0:00:56]} 10. Ne4 {[%emt 0:00:49]} Bb6 {[%emt 0:00:01]} 11. Bb3 {[%emt 0:00:37]} a6 {[%emt 0:01:27]} 12. Re1 {[%emt 0:01:30]} Bf5 {[%emt 0:01:02]} 13. Ng3 {[%emt 0:00:26]} Bg6 {[%emt 0:01:31]} 14. Qe2 {[%emt 0:01:48]} Nf4 {[%emt 0:03:40]} 15. Qd1 {[%emt 0:01:01]} Nxd3 {[%emt 0:01:03]} 16. Re2 {[%emt 0:01:16]} e4 {[%emt 0:02:38]} 17. Ne1 {[%emt 0:03:18]} Nxe1 {[%emt 0:03:15]} 18. Qxe1 {[%emt 0:00:16]} Qe7 {[%emt 0:01:29]} 19. Bf4 {[%emt 0:02:03]} Rad8 {[%emt 0:02:28]} 20. Kh1 {[%emt 0:01:05]} Qh4 {[%emt 0:02:00]} 21. Be3 {[%emt 0:05:41]} Bxe3 {[%emt 0:00:33]} 22. Rxe3 {[%emt 0:00:13]} Re5 {[%emt 0:02:18]} 23. Qe2 {[%emt 0:04:17]} Rde8 {[%emt 0:01:46]} 24. Re1 {[%emt 0:02:15]} b5 {[%emt 0:02:41]} 25. Qd2 {[%emt 0:02:06]} Rd8 {[%emt 0:01:55]} 26. Qc2 {[%emt 0:01:21]} Rde8 {[%emt 0:02:36]} 27. a4 {[%emt 0:06:32]} Qf4 {[%emt 0:05:51]} 28. axb5 {[%emt 0:04:09]} axb5 {[%emt 0:00:10]} 29. c4 {[%emt 0:04:41]} Nd4 {[%emt 0:01:13]} 30. Qc3 {[%emt 0:01:33]} Nxb3 {[%emt 0:00:57]} 31. Qxb3 {[%emt 0:00:30]} bxc4 {[%emt 0:00:27]} 32. Qxc4 {[%emt 0:00:28]} R8e7 {[%emt 0:01:19]} 33. R3e2 {[%emt 0:01:34]} c5 {[%emt 0:11:35]} 34. Nf1 {[%emt 0:04:49]} Bh5 {[%emt 0:02:02]} 35. f3 {[%emt 0:01:53]} e3 {[%emt 0:05:39]} 36. Qxf4 {[%emt 0:00:33]} g5 {[%emt 0:00:25]} 37. Qc4 {[%emt 0:01:15]} Kg7 {[%emt 0:00:26]} 38. Rxe3 {[%emt 0:00:35]} Rxe3 {[%emt 0:00:31]} 39. Rxe3 {[%emt 0:00:10]} Rxe3 {[%emt 0:00:04]} 40. Nxe3 {[%emt 0:00:10]} Kh7 {[%emt 0:00:28]} 41. Qxc5 {[%emt 0:30:31]} Bg6 {[%emt 0:30:17]} 42. b4 {[%emt 0:00:24]} Kg7 {[%emt 0:00:17]} 43. b5 {[%emt 0:00:13]} Kh7 {[%emt 0:00:04]} 44. b6 {[%emt 0:00:17]} Kg7 {[%emt 0:00:16]} 45. b7 {[%emt 0:00:21]} Bd3 {[%emt 0:00:18]} 46. Qd4+ {[%emt 0:00:42]} Kg6 {[%emt 0:00:14]} 47. b8=Q {[%emt 0:00:41]} Ba6 {[%emt 0:00:35]} 48. Qg8+ {[%emt 0:00:10]} Kh5 {[%emt 0:00:13]} 49. Qg4# {[%emt 0:00:07] normal} 1-0

[Event "DVM U12w 2023"]
[Site "Magdeburg"]
[Date "2023.12.28"]
[Round "4"]
[White "Busch, Lara Sophie"]
[Black "Gerth, Lydia"]
[Result "1-0"]
[WhiteElo "1330"]
[BlackElo "1214"]
[PlyCount "127"]
[EventDate "2022.12.27"]
[EventType "team-tourn"]
[EventRounds "7"]
[EventCountry "GER"]
[TimeControl "40/5400+30:1800+30"]
[WhiteClock "1:03:15"]
[BlackClock "0:56:51"]

1. e4 {[%emt 0:00:03]} e6 {[%emt 0:00:06]} 2. d4 {[%emt 0:00:09]} d5 {[%emt 0:00:06]} 3. exd5 {[%emt 0:00:52]} exd5 {[%emt 0:00:07]} 4. Nf3 {[%emt 0:00:45]} Bd6 {[%emt 0:00:11]} 5. Nc3 {[%emt 0:00:42]} Nf6 {[%emt 0:00:14]} 6. Bg5 {[%emt 0:00:35]} c6 {[%emt 0:00:12]} 7. Bd3 {[%emt 0:01:47]} Bg4 {[%emt 0:02:53]} 8. h3 {[%emt 0:01:01]} Bh5 {[%emt 0:00:08]} 9. Qe2+ {[%emt 0:00:44]} Qe7 {[%emt 0:00:58]} 10. Bxf6 {[%emt 0:00:56]} gxf6 {[%emt 0:00:04]} 11. Qxe7+ {[%emt 0:01:23]} Bxe7 {[%emt 0:00:10]} 12. Nh4 {[%emt 0:01:11]} O-O {[%emt 0:05:00]} 13. O-O {[%emt 0:01:18]} Bd6 {[%emt 0:02:03]} 14. Nf5 {[%emt 0:01:37]} Bc7 {[%emt 0:00:17]} 15. Rfe1 {[%emt 0:01:24]} Nd7 {[%emt 0:08:25]} 16. Re7 {[%emt 0:02:58]} Rad8 {[%emt 0:00:00]} 17. Rae1 {[%emt 0:01:11]} Kh8 {[%emt 0:00:00]} 18. R1e3 {[%emt 0:07:03]} Bf4 {[%emt 0:03:26]} 19. Re1 {[%emt 0:01:08]} Bd2 {[%emt 0:02:36]} 20. Rb1 {[%emt 0:01:25]} Rfe8 {[%emt 0:00:57]} 21. g4 {[%emt 0:03:24]} Bg6 {[%emt 0:02:44]} 22. Rd1 {[%emt 0:02:39]} Rxe7 {[%emt 0:07:14]} 23. Nxe7 {[%emt 0:00:13]} Bxd3 {[%emt 0:01:01]} 24. Rxd2 {[%emt 0:00:53]} Bg6 {[%emt 0:00:40]} 25. Re2 {[%emt 0:01:17]} Nb6 {[%emt 0:03:36]} 26. Nxg6+ {[%emt 0:01:23]} fxg6 {[%emt 0:00:19]} 27. Re7 {[%emt 0:01:12]} Nd7 {[%emt 0:01:27]} 28. Ne2 {[%emt 0:01:06]} b5 {[%emt 0:01:40]} 29. Nf4 {[%emt 0:00:47]} Nb6 {[%emt 0:02:03]} 30. Rxa7 {[%emt 0:01:26]} Nc4 {[%emt 0:04:31]} 31. b3 {[%emt 0:01:05]} Nd2 {[%emt 0:00:14]} 32. Kg2 {[%emt 0:01:03]} Re8 {[%emt 0:01:40]} 33. Rf7 {[%emt 0:01:20]} Re4 {[%emt 0:01:49]} 34. Kg3 {[%emt 0:01:47]} Nf1+ {[%emt 0:00:15]} 35. Kg2 {[%emt 0:01:08]} Rxf4 {[%emt 0:00:46]} 36. Kxf1 {[%emt 0:00:08]} Rxd4 {[%emt 0:00:09]} 37. Rxf6 {[%emt 0:00:14]} Rd2 {[%emt 0:00:30]} 38. Rxc6 {[%emt 0:00:22]} d4 {[%emt 0:00:58]} 39. Ke1 {[%emt 0:00:11]} Rxc2 {[%emt 0:00:49]} 40. Rxc2 {[%emt 0:00:15]} d3 {[%emt 0:00:01]} 41. Rd2 {[%emt 0:30:11]} Kg7 {[%emt 0:30:08]} 42. Rxd3 {[%emt 0:00:12]} Kf6 {[%emt 0:00:10]} 43. Rd5 {[%emt 0:00:09]} Ke6 {[%emt 0:00:10]} 44. Rxb5 {[%emt 0:00:11]} Kd6 {[%emt 0:00:07]} 45. a4 {[%emt 0:00:19]} Kc6 {[%emt 0:00:04]} 46. b4 {[%emt 0:00:22]} h6 {[%emt 0:00:26]} 47. f4 {[%emt 0:00:14]} Kc7 {[%emt 0:00:48]} 48. h4 {[%emt 0:00:20]} Kc6 {[%emt 0:00:06]} 49. h5 {[%emt 0:00:20]} gxh5 {[%emt 0:00:11]} 50. gxh5 {[%emt 0:00:09]} Kc7 {[%emt 0:00:05]} 51. f5 {[%emt 0:00:12]} Kd6 {[%emt 0:00:11]} 52. Rc5 {[%emt 0:00:15]} Ke7 {[%emt 0:00:14]} 53. a5 {[%emt 0:00:07]} Kf6 {[%emt 0:00:06]} 54. a6 {[%emt 0:00:23]} Kg5 {[%emt 0:00:05]} 55. a7 {[%emt 0:00:20]} Kxh5 {[%emt 0:00:05]} 56. a8=Q {[%emt 0:00:16]} Kg5 {[%emt 0:00:05]} 57. f6+ {[%emt 0:00:35]} Kg6 {[%emt 0:00:29]} 58. Qh8 {[%emt 0:01:02]} Kf7 {[%emt 0:00:09]} 59. Qxh6 {[%emt 0:00:56]} Ke6 {[%emt 0:00:25]} 60. f7+ {[%emt 0:00:16]} Kd7 {[%emt 0:00:11]} 61. f8=N+ {[%emt 0:01:16]} Ke7 {[%emt 0:00:15]} 62. Rc7+ {[%emt 0:00:17]} Ke8 {[%emt 0:00:10]} 63. Qh7 {[%emt 0:00:40]} Kd8 {[%emt 0:00:10]} 64. Qd7# {[%emt 0:00:08] normal} 1-0

[Event "DVM U12w 2023"]
[Site "Magdeburg"]
[Date "2023.12.28"]
[Round "4"]
[White "Kuebart, Ela Marie"]
[Black "Winkler, Frida"]
[Result "0-1"]
[WhiteElo "1325"]
[BlackElo "1298"]
[PlyCount "94"]
[EventDate "2022.12.27"]
[EventType "team-tourn"]
[EventRounds "7"]
[EventCountry "GER"]
[TimeControl "40/5400+30:1800+30"]
[WhiteClock "0:21:33"]
[BlackClock "0:56:09"]

1. d4 {[%emt 0:00:03]} Nf6 {[%emt 0:00:08]} 2. c3 {[%emt 0:00:11]} e6 {[%emt 0:00:10]} 3. e3 {[%emt 0:00:31]} c5 {[%emt 0:00:13]} 4. f4 {[%emt 0:01:05]} b6 {[%emt 0:00:43]} 5. Bd3 {[%emt 0:01:05]} Ba6 {[%emt 0:00:11]} 6. b3 {[%emt 0:03:19]} cxd4 {[%emt 0:00:39]} 7. exd4 {[%emt 0:00:40]} Be7 {[%emt 0:00:22]} 8. Nf3 {[%emt 0:01:09]} Bxd3 {[%emt 0:00:48]} 9. Qxd3 {[%emt 0:01:01]} O-O {[%emt 0:05:04]} 10. O-O {[%emt 0:02:36]} d6 {[%emt 0:03:02]} 11. f5 {[%emt 0:07:02]} e5 {[%emt 0:05:45]} 12. dxe5 {[%emt 0:02:29]} dxe5 {[%emt 0:00:08]} 13. Qxd8 {[%emt 0:00:19]} Rxd8 {[%emt 0:00:14]} 14. Nxe5 {[%emt 0:01:24]} Rd5 {[%emt 0:00:29]} 15. Re1 {[%emt 0:01:57]} Bd6 {[%emt 0:00:42]} 16. Nc4 {[%emt 0:07:05]} Bc5+ {[%emt 0:00:24]} 17. Be3 {[%emt 0:06:12]} Rxf5 {[%emt 0:00:42]} 18. Bxc5 {[%emt 0:01:17]} Rxc5 {[%emt 0:00:17]} 19. Nbd2 {[%emt 0:05:25]} Nbd7 {[%emt 0:04:51]} 20. Ne4 {[%emt 0:04:45]} Nxe4 {[%emt 0:03:29]} 21. Rxe4 {[%emt 0:01:01]} b5 {[%emt 0:01:06]} 22. Nd6 {[%emt 0:02:11]} a6 {[%emt 0:02:20]} 23. Re7 {[%emt 0:12:20]} Nf6 {[%emt 0:00:39]} 24. Rc1 {[%emt 0:05:33]} Nd5 {[%emt 0:02:04]} 25. Rxf7 {[%emt 0:03:47]} Rc6 {[%emt 0:01:43]} 26. Rd7 {[%emt 0:01:31]} Nf6 {[%emt 0:00:34]} 27. Re7 {[%emt 0:03:07]} Rxd6 {[%emt 0:00:14]} 28. c4 {[%emt 0:00:20]} bxc4 {[%emt 0:00:57]} 29. bxc4 {[%emt 0:00:07]} Rad8 {[%emt 0:01:47]} 30. c5 {[%emt 0:00:52]} Rd1+ {[%emt 0:00:11]} 31. Rxd1 {[%emt 0:00:15]} Rxd1+ {[%emt 0:00:13]} 32. Kf2 {[%emt 0:00:14]} Rd2+ {[%emt 0:00:19]} 33. Ke3 {[%emt 0:01:02]} Rxa2 {[%emt 0:00:22]} 34. Kd4 {[%emt 0:00:25]} Ra4+ {[%emt 0:00:25]} 35. Ke5 {[%emt 0:00:35]} Re4+ {[%emt 0:04:17]} 36. Kd6 {[%emt 0:00:17]} Ne8+ {[%emt 0:00:20]} 37. Kd7 {[%emt 0:00:39]} Nf6+ {[%emt 0:00:21]} 38. Kd6 {[%emt 0:00:46]} Rd4+ {[%emt 0:00:22]} 39. Kc6 {[%emt 0:01:01]} a5 {[%emt 0:00:33]} 40. Kb5 {[%emt 0:00:43]} Rd5 {[%emt 0:05:39]} 41. Kc4 {[%emt 0:31:03]} a4 {[%emt 0:31:01]} 42. c6 {[%emt 0:00:49]} Rd8 {[%emt 0:00:39]} 43. Rb7 {[%emt 0:01:50]} Rc8 {[%emt 0:01:18]} 44. c7 {[%emt 0:01:13]} Ne8 {[%emt 0:00:37]} 45. Rb8 {[%emt 0:00:56]} Rxc7+ {[%emt 0:00:10]} 46. Kb4 {[%emt 0:00:07]} Kf8 {[%emt 0:00:59]} 47. Kxa4 {[%emt 0:00:08]} Rc2 {[%emt 0:00:20] normal} 0-1

[Event "DVM U12w 2023"]
[Site "Magdeburg"]
[Date "2023.12.28"]
[Round "4"]
[White "Leicher, Anna"]
[Black "Briese, Sophie"]
[Result "0-1"]
[WhiteElo "1279"]
[BlackElo "1207"]
[PlyCount "88"]
[EventDate "2022.12.27"]
[EventType "team-tourn"]
[EventRounds "7"]
[EventCountry "GER"]
[TimeControl "40/5400+30:1800+30"]

1. e4 {[%emt 0:00:03]} e5 {[%emt 0:00:04]} 2. Nf3 {[%emt 0:00:07]} Nc6 {[%emt 0:00:04]} 3. Bc4 {[%emt 0:00:06]} Bc5 {[%emt 0:00:08]} 4. c3 {[%emt 0:00:05]} d6 {[%emt 0:01:45]} 5. d4 {[%emt 0:01:13]} Bb6 {[%emt 0:01:07]} 6. dxe5 {[%emt 0:00:57]} dxe5 {[%emt 0:02:28]} 7. Qxd8+ {[%emt 0:00:13]} Kxd8 {[%emt 0:00:28]} 8. Bxf7 {[%emt 0:01:19]} Nf6 {[%emt 0:02:27]} 9. Bd5 {[%emt 0:01:23]} Rf8 {[%emt 0:02:20]} 10. O-O {[%emt 0:01:09]} Bg4 {[%emt 0:01:55]} 11. Bg5 {[%emt 0:02:26]} h6 {[%emt 0:02:28]} 12. Bxf6+ {[%emt 0:00:12]} Rxf6 {[%emt 0:00:37]} 13. Nbd2 {[%emt 0:00:21]} Kd7 {[%emt 0:04:25]} 14. Bxc6+ {[%emt 0:00:08]} Rxc6 {[%emt 0:00:12]} 15. Nxe5+ {[%emt 0:00:06]} Ke8 {[%emt 0:01:12]} 16. Nxg4 {[%emt 0:01:00]} Rd8 {[%emt 0:01:54]} 17. Nb3 {[%emt 0:03:28]} h5 {[%emt 0:02:59]} 18. Ne5 {[%emt 0:02:04]} Re6 {[%emt 0:01:26]} 19. Nc4 {[%emt 0:00:19]} Rxe4 {[%emt 0:02:02]} 20. Rfe1 {[%emt 0:00:17]} Rxe1+ {[%emt 0:00:48]} 21. Rxe1+ {[%emt 0:00:07]} Kf8 {[%emt 0:00:13]} 22. Nxb6 {[%emt 0:00:20]} axb6 {[%emt 0:00:10]} 23. Nd4 {[%emt 0:00:14]} Rd6 {[%emt 0:01:03]} 24. Re5 {[%emt 0:00:57]} c5 {[%emt 0:00:32]} 25. Ne6+ {[%emt 0:00:38]} Kg8 {[%emt 0:00:29]} 26. g3 {[%emt 0:00:25]} Kf7 {[%emt 0:01:15]} 27. Nf4 {[%emt 0:00:27]} g6 {[%emt 0:00:40]} 28. Rd5 {[%emt 0:01:17]} Rxd5 {[%emt 0:01:35]} 29. Nxd5 {[%emt 0:00:11]} b5 {[%emt 0:00:27]} 30. Nc7 {[%emt 0:00:13]} b4 {[%emt 0:01:03]} 31. cxb4 {[%emt 0:00:11]} cxb4 {[%emt 0:00:04]} 32. Nd5 {[%emt 0:00:08]} Ke8 {[%emt 0:00:26]} 33. Nxb4 {[%emt 0:00:15]} b6 {[%emt 0:00:17]} 34. Nd5 {[%emt 0:00:13]} b5 {[%emt 0:00:38]} 35. Nc7+ {[%emt 0:00:13]} Kd8 {[%emt 0:00:07]} 36. Nxb5 {[%emt 0:00:13]} Kc8 {[%emt 0:00:04]} 37. a4 {[%emt 0:00:08]} Kb8 {[%emt 0:00:05]} 38. b4 {[%emt 0:00:16]} Kc8 {[%emt 0:00:07]} 39. Kg2 {[%emt 0:00:33]} Kd8 {[%emt 0:00:12]} 40. Kf3 {[%emt 0:00:10]} g5 {[%emt 0:00:13]} 41. h4 {[%emt 0:30:19]} g4+ {[%emt 0:30:16]} 42. Kf4 {[%emt 0:00:07]} Ke7 {[%emt 0:00:11]} 43. a5 {[%emt 0:00:19]} Kd7 {[%emt 0:00:13]} 44. a6 {[%emt 0:00:00] Kc7 Nd4 Kb8 b5 Ka7 Kg5 Kb8 b6 Ka8 b7+ Ka7 Nc6+ Kxa6 Na5 Ka7 Kxh5 Kb8 Kxg4 Kc7 h5 Kb8 h6 Kc7 h7 Kb8 h8=Q+ Kc7 Qc3+ Kd7 Qe5} Kd8 {[%emt 0:00:00] normal b8=Q+ Kd7 Qbc7#} 0-1

[Event "DVM U12w 2023"]
[Site "Magdeburg"]
[Date "2023.12.28"]
[Round "4"]
[White "Korwitz, Pauline"]
[Black "Schmegel, Alina"]
[Result "1-0"]
[WhiteElo "1219"]
[BlackElo "892"]
[PlyCount "49"]
[EventDate "2022.12.27"]
[EventType "team-tourn"]
[EventRounds "7"]
[EventCountry "GER"]
[TimeControl "40/5400+30:1800+30"]
[WhiteClock "1:28:25"]
[BlackClock "1:26:48"]

1. e4 {[%emt 0:00:03]} e5 {[%emt 0:00:05]} 2. Nf3 {[%emt 0:00:06]} Nc6 {[%emt 0:00:05]} 3. d4 {[%emt 0:00:08]} d6 {[%emt 0:01:32]} 4. Nc3 {[%emt 0:00:36]} Bg4 {[%emt 0:00:17]} 5. d5 {[%emt 0:00:47]} Nd4 {[%emt 0:00:41]} 6. h3 {[%emt 0:00:43]} Nxf3+ {[%emt 0:00:23]} 7. gxf3 {[%emt 0:00:19]} Bh5 {[%emt 0:00:37]} 8. Bb5+ {[%emt 0:00:40]} c6 {[%emt 0:00:32]} 9. dxc6 {[%emt 0:00:16]} bxc6 {[%emt 0:02:27]} 10. Bxc6+ {[%emt 0:00:27]} Ke7 {[%emt 0:00:41]} 11. Bxa8 {[%emt 0:00:36]} Qxa8 {[%emt 0:00:08]} 12. Nd5+ {[%emt 0:00:27]} Ke8 {[%emt 0:00:14]} 13. Nc7+ {[%emt 0:00:16]} Kd8 {[%emt 0:00:12]} 14. Nxa8 {[%emt 0:00:09]} g6 {[%emt 0:02:32]} 15. Qd3 {[%emt 0:01:38]} f5 {[%emt 0:01:01]} 16. exf5 {[%emt 0:00:24]} gxf5 {[%emt 0:00:18]} 17. Qxf5 {[%emt 0:00:39]} Bg6 {[%emt 0:00:47]} 18. Qxf8+ {[%emt 0:00:36]} Be8 {[%emt 0:00:17]} 19. Qxd6+ {[%emt 0:01:06]} Bd7 {[%emt 0:00:26]} 20. Bg5+ {[%emt 0:00:31]} Ke8 {[%emt 0:00:17]} 21. Nc7+ {[%emt 0:00:54]} Kf7 {[%emt 0:00:14]} 22. Qxd7+ {[%emt 0:00:34]} Kg6 {[%emt 0:01:09]} 23. Rg1 {[%emt 0:01:59]} h6 {[%emt 0:00:18]} 24. Bh4+ {[%emt 0:00:19]} Kh5 {[%emt 0:00:29]} 25. Qg4# {[%emt 0:00:22] normal} 1-0

[Event "DVM U12w 2023"]
[Site "Magdeburg"]
[Date "2023.12.28"]
[Round "4"]
[White "Cao, Weiqi"]
[Black "Fedorova, Marina"]
[Result "1-0"]
[WhiteElo "1191"]
[BlackElo "1144"]
[PlyCount "136"]
[EventDate "2022.12.27"]
[EventType "team-tourn"]
[EventRounds "7"]
[EventCountry "GER"]
[TimeControl "40/5400+30:1800+30"]
[WhiteClock "1:34:30"]
[BlackClock "0:26:06"]

1. d4 {[%emt 0:00:05]} d5 {[%emt 0:00:05]} 2. Nf3 {[%emt 0:00:05]} Nf6 {[%emt 0:00:08]} 3. g3 {[%emt 0:00:04]} Bf5 {[%emt 0:00:27]} 4. Bg2 {[%emt 0:00:14]} e6 {[%emt 0:00:14]} 5. O-O {[%emt 0:00:09]} Be7 {[%emt 0:00:07]} 6. c4 {[%emt 0:00:09]} c6 {[%emt 0:00:25]} 7. Nc3 {[%emt 0:00:36]} h6 {[%emt 0:00:59]} 8. Re1 {[%emt 0:01:15]} Nbd7 {[%emt 0:14:01]} 9. h3 {[%emt 0:02:33]} h5 {[%emt 0:05:40]} 10. Nh4 {[%emt 0:01:49]} Bh7 {[%emt 0:06:44]} 11. Bg5 {[%emt 0:02:30]} O-O {[%emt 0:02:58]} 12. Qb3 {[%emt 0:11:11]} Qb6 {[%emt 0:01:24]} 13. Qxb6 {[%emt 0:00:45]} Nxb6 {[%emt 0:00:14]} 14. cxd5 {[%emt 0:01:15]} cxd5 {[%emt 0:03:29]} 15. e4 {[%emt 0:00:35]} dxe4 {[%emt 0:03:42]} 16. Nxe4 {[%emt 0:00:56]} Bxe4 {[%emt 0:01:07]} 17. Bxe4 {[%emt 0:01:53]} Nxe4 {[%emt 0:06:03]} 18. Bxe7 {[%emt 0:00:40]} Rfe8 {[%emt 0:00:21]} 19. Rxe4 {[%emt 0:00:49]} Rxe7 {[%emt 0:00:11]} 20. Nf5 {[%emt 0:01:39]} Rd7 {[%emt 0:03:04]} 21. Nh4 {[%emt 0:01:17]} f5 {[%emt 0:02:12]} 22. Rxe6 {[%emt 0:00:38]} Rf8 {[%emt 0:05:54]} 23. Nf3 {[%emt 0:02:34]} Nd5 {[%emt 0:05:05]} 24. Rd1 {[%emt 0:03:47]} Ne7 {[%emt 0:01:46]} 25. Ne5 {[%emt 0:02:02]} Rc7 {[%emt 0:02:12]} 26. Kg2 {[%emt 0:04:16]} Nc6 {[%emt 0:04:30]} 27. Nxc6 {[%emt 0:00:36]} bxc6 {[%emt 0:00:46]} 28. Rc1 {[%emt 0:00:46]} Rfc8 {[%emt 0:01:39]} 29. Re5 {[%emt 0:00:28]} g6 {[%emt 0:01:09]} 30. Rec5 {[%emt 0:00:27]} Rb8 {[%emt 0:06:52]} 31. Rxc6 {[%emt 0:00:45]} Rxc6 {[%emt 0:00:06]} 32. Rxc6 {[%emt 0:00:10]} Rxb2 {[%emt 0:00:23]} 33. Rxg6+ {[%emt 0:00:06]} Kf7 {[%emt 0:00:32]} 34. Ra6 {[%emt 0:00:18]} Rb7 {[%emt 0:01:25]} 35. Ra5 {[%emt 0:00:31]} Kf6 {[%emt 0:01:00]} 36. Ra6+ {[%emt 0:00:56]} Kg7 {[%emt 0:01:07]} 37. Kf3 {[%emt 0:00:17]} Re7 {[%emt 0:01:37]} 38. d5 {[%emt 0:01:10]} Rd7 {[%emt 0:03:46]} 39. Kf4 {[%emt 0:00:49]} Rxd5 {[%emt 0:01:04]} 40. Rxa7+ {[%emt 0:00:07]} Kg6 {[%emt 0:00:11]} 41. Ra6+ {[%emt 0:30:07]} Kg7 {[%emt 0:30:23]} 42. Kg5 {[%emt 0:00:31]} Rd7 {[%emt 0:10:02]} 43. Kxh5 {[%emt 0:01:01]} Rf7 {[%emt 0:01:20]} 44. Ra8 {[%emt 0:00:27]} f4 {[%emt 0:01:01]} 45. a4 {[%emt 0:00:31]} fxg3 {[%emt 0:00:28]} 46. fxg3 {[%emt 0:00:11]} Rd7 {[%emt 0:01:41]} 47. a5 {[%emt 0:00:27]} Rd5+ {[%emt 0:00:28]} 48. Kg4 {[%emt 0:00:08]} Rd4+ {[%emt 0:00:18]} 49. Kh5 {[%emt 0:00:23]} Rd5+ {[%emt 0:00:12]} 50. Kh4 {[%emt 0:00:16]} Rd6 {[%emt 0:01:46]} 51. g4 {[%emt 0:00:18]} Rh6+ {[%emt 0:00:24]} 52. Kg3 {[%emt 0:00:08]} Rc6 {[%emt 0:01:40]} 53. a6 {[%emt 0:00:09]} Rc3+ {[%emt 0:00:16]} 54. Kh4 {[%emt 0:00:05]} Rc6 {[%emt 0:00:47]} 55. a7 {[%emt 0:00:33]} Rh6+ {[%emt 0:00:45]} 56. Kg3 {[%emt 0:00:15]} Ra6 {[%emt 0:00:11]} 57. Kf4 {[%emt 0:00:30]} Ra5 {[%emt 0:00:00]} 58. Ke4 {[%emt 0:00:00]} Kf7 {[%emt 0:00:00]} 59. Kd4 {[%emt 0:00:00]} Ke7 {[%emt 0:00:00]} 60. Kc4 {[%emt 0:00:00]} Kd7 {[%emt 0:00:00]} 61. g5 {[%emt 0:00:00]} Kc6 {[%emt 0:00:00]} 62. Rc8+ {[%emt 0:00:00]} Kb7 {[%emt 0:00:00]} 63. a8=Q+ {[%emt 0:00:25]} Rxa8 {[%emt 0:00:00]} 64. Rxa8 {[%emt 0:00:00]} Kxa8 {[%emt 0:00:00]} 65. g6 {[%emt 0:00:00]} Kb8 {[%emt 0:00:00]} 66. g7 {[%emt 0:00:00]} Kc7 {[%emt 0:00:00]} 67. g8=Q {[%emt 0:00:00]} Kd6 {[%emt 0:00:00]} 68. Qd5+ {[%emt 0:00:00]} Kc7 {[%emt 0:00:00] normal} 1-0